fUST/lending_fUST_20260114
["ID","MTS","AMOUNT","RATE_DAILY","PERIOD"]
[401801643,1768379441971,-500.0,0.00013273,2]
[401801644,1768379441980,-500.0,0.00013273,2]
[401801645,1768379441994,-500.0,0.00013273,2]
[401801647,1768379442008,-500.0,0.00013273,2]
[401801648,1768379442017,-261.59054001,0.00013273,2]
[401801649,1768379442026,-500.0,0.00013273,2]
[401801651,1768379442035,-908.0,0.00013288,2]
[401801652,1768379442044,-431.0,0.00013288,2]
[401801653,1768379442054,-500.0,0.0001334,2]
[401801655,1768379442063,-908.0,0.00013425,2]
[401801656,1768379442072,-431.0,0.00013425,2]
[401801657,1768379442081,-1957.856,0.00013441,2]
[401801658,1768379442090,-500.0,0.00013441,2]
[401801660,1768379442099,-500.0,0.00013441,2]
[401801661,1768379442108,-500.0,0.00013441,2]
[401801662,1768379442118,-311.85701,0.00013441,2]
[401801664,1768379442127,-500.0,0.00013441,2]
[401801665,1768379442136,-500.0,0.00013441,2]
[401801666,1768379442145,-250.0,0.00013441,2]
[401801668,1768379442154,-500.0,0.00013441,2]
[401801669,1768379442164,-500.0,0.00013441,2]
[401801670,1768379442174,-500.0,0.00013441,2]
[401801671,1768379442183,-500.0,0.00013441,2]
[401801672,1768379442192,-500.0,0.00013441,2]
[401801673,1768379442201,-500.0,0.00013441,2]
[401801674,1768379442210,-500.0,0.00013441,2]
[401801675,1768379442219,-168.3888056,0.00013441,2]
[401801676,1768379442228,-500.0,0.00013441,2]
[401801677,1768379442237,-2230.315306,0.00013441,2]
[401801678,1768379442246,-174.61919141,0.00013441,2]
[401801679,1768379442255,-500.0,0.00013441,2]
[401801680,1768379442265,-181.08010149,0.00013441,2]
[401801681,1768379442274,-500.0,0.00013441,2]
[401801682,1768379442283,-187.78006525,0.00013441,2]
[401801683,1768379442292,-500.0,0.00013441,2]
[401801684,1768379442301,-194.72792766,0.00013441,2]
[401801685,1768379442311,-500.0,0.00013441,2]
[401801686,1768379442320,-201.93286099,0.00013441,2]
[401801690,1768379442440,-209.40437684,0.00013441,2]
[401801691,1768379442450,-217.15233878,0.00013441,2]
[401801693,1768379442460,-225.18697532,0.00013441,2]
[401801694,1768379442469,-233.51889341,0.00013441,2]
[401801695,1768379442479,-242.15909246,0.00013441,2]
[401801696,1768379442488,-251.11897888,0.00013441,2]
[401801698,1768379442497,-461.67526834,0.00013441,2]
[401801699,1768379442507,-260.4103811,0.00013441,2]
[401801700,1768379442516,-270.0455652,0.00013441,2]
[401801702,1768379442526,-30000.0,0.00013441,2]
[401801703,1768379442535,-280.03725112,0.00013441,2]
[401801704,1768379442544,-290.39862941,0.00013441,2]
[401801705,1768379442554,-301.1433787,0.00013441,2]
[401801707,1768379442563,-2030.296672,0.00013496,2]
[401801708,1768379442573,-1000.0,0.00013527,2]
[401801709,1768379442583,-2105.41764886,0.00013551,2]
[401801711,1768379442592,-908.0,0.00013562,2]
[401801712,1768379442601,-431.0,0.00013562,2]
[401801713,1768379442611,-2183.31810187,0.00013606,2]
[401801715,1768379442621,-500.0,0.00013614,2]
[401801716,1768379442630,-2264.10087164,0.00013661,2]
[401801717,1768379442639,-300.0,0.00013673,2]
[401801718,1768379442649,-518.87817295,0.00013698,2]
[401801720,1768379442659,-500.0,0.00013698,2]
[401801721,1768379442668,-500.0,0.00013698,2]
[401801722,1768379442678,-500.0,0.00013698,2]
[401801724,1768379442687,-500.0,0.00013698,2]
[401801725,1768379442697,-500.0,0.00013698,2]
[401801726,1768379442706,-500.0,0.00013698,2]
[401801728,1768379442716,-509.06636441,0.00013698,2]
[401801729,1768379442726,-589.28,0.00013698,2]
[401801730,1768379442735,-500.0,0.00013698,2]
[401801731,1768379442744,-500.0,0.00013698,2]
[401801733,1768379442753,-622.37610142,0.00013698,2]
[401801734,1768379442763,-500.0,0.00013698,2]
[401801735,1768379442772,-500.0,0.00013698,2]
[401801737,1768379442780,-453.49252577,0.00013698,2]
[401801738,1768379442790,-500.0,0.00013698,2]
[401801739,1768379442799,-500.0,0.00013698,2]
[401801741,1768379442809,-500.0,0.00013698,2]
[401801742,1768379442818,-500.0,0.00013698,2]
[401801743,1768379442827,-500.0,0.00013698,2]
[401801745,1768379442836,-500.0,0.00013698,2]
[401801746,1768379442845,-582.4382982,0.00013698,2]
[401801747,1768379442854,-800.23,0.00013698,2]
[401801749,1768379442865,-800.23,0.00013698,2]
[401801750,1768379442874,-800.23,0.00013698,2]
[401801751,1768379442883,-800.23,0.00013698,2]
[401801752,1768379442892,-800.23,0.00013698,2]
[401801754,1768379442902,-800.23,0.00013698,2]
[401801755,1768379442911,-800.23,0.00013698,2]
[401801756,1768379442920,-800.23,0.00013698,2]
[401801758,1768379442929,-800.23,0.00013698,2]
[401801759,1768379442938,-800.23,0.00013698,2]
[401801760,1768379442947,-800.23,0.00013698,2]
[401801762,1768379442956,-800.23,0.00013698,2]
[401801763,1768379442965,-800.23,0.00013698,2]
[401801764,1768379442975,-800.23,0.00013698,2]
[401801766,1768379442984,-800.23,0.00013698,2]
[401801767,1768379442994,-800.23,0.00013698,2]
[401801768,1768379443003,-800.23,0.00013698,2]
[401801769,1768379443012,-800.23,0.00013698,2]
[401801771,1768379443021,-800.23,0.00013698,2]
[401801772,1768379443031,-800.23,0.00013698,2]
[401801773,1768379443040,-800.23,0.00013698,2]
[401801775,1768379443049,-800.23,0.00013698,2]
[401801777,1768379443058,-800.23,0.00013698,2]
[401801778,1768379443067,-800.43872931,0.00013698,2]
[401801781,1768379443077,-500.0,0.00013698,2]
[401801782,1768379443086,-500.0,0.00013698,2]
[401801783,1768379443095,-633.96263391,0.00013698,2]
[401801785,1768379443105,-500.0,0.00013698,2]
[401801786,1768379443114,-500.0,0.00013698,2]
[401801787,1768379443123,-500.0,0.00013698,2]
[401801789,1768379443133,-453.8287473,0.00013698,2]
[401801790,1768379443143,-500.0,0.00013698,2]
[401801791,1768379443152,-500.0,0.00013698,2]
[401801792,1768379443161,-500.0,0.00013698,2]
[401801794,1768379443170,-500.0,0.00013698,2]
[401801795,1768379443180,-497.78018917,0.00013698,2]
[401801796,1768379443189,-1000.0,0.00013698,2]
[401801798,1768379443198,-1000.0,0.00013698,2]
[401801799,1768379443208,-1000.0,0.00013698,2]
[401801800,1768379443217,-1000.0,0.00013698,2]
[401801802,1768379443226,-1000.0,0.00013698,2]
[401801803,1768379443236,-1000.0,0.00013698,2]
[401801804,1768379443245,-1000.0,0.00013698,2]
[401801806,1768379443254,-1017.75755303,0.00013698,2]
[401801807,1768379443263,-500.0,0.00013698,2]
[401801808,1768379443272,-500.0,0.00013698,2]
[401801809,1768379443281,-500.0,0.00013698,2]
[401801811,1768379443291,-500.0,0.00013698,2]
[401801812,1768379443300,-500.0,0.00013698,2]
[401801813,1768379443309,-500.0,0.00013698,2]
[401801815,1768379443319,-500.0,0.00013698,2]
[401801816,1768379443336,-500.0,0.00013698,2]
[401801817,1768379443346,-500.0,0.00013698,2]
[401801819,1768379443355,-500.0,0.00013698,2]
[401801820,1768379443366,-500.0,0.00013698,2]
[401801821,1768379443376,-500.0,0.00013698,2]
[401801822,1768379443385,-500.0,0.00013698,2]
[401801824,1768379443396,-500.0,0.00013698,2]
[401801825,1768379443406,-585.28946164,0.00013698,2]
[401801826,1768379443416,-500.0,0.00013698,2]
[401801828,1768379443426,-500.0,0.00013698,2]
[401801829,1768379443436,-500.0,0.00013698,2]
[401801830,1768379443446,-500.0,0.00013698,2]
[401801832,1768379443456,-550.39437847,0.00013698,2]
[401801833,1768379443466,-504.29229129,0.00013698,2]
[401801834,1768379443476,-500.0,0.00013698,2]
[401801835,1768379443486,-500.0,0.00013698,2]
[401801837,1768379443495,-500.0,0.00013698,2]
[401801838,1768379443505,-559.52204836,0.00013698,2]
[401801839,1768379443514,-500.0,0.00013698,2]
[401801841,1768379443524,-500.0,0.00013698,2]
[401801842,1768379443534,-500.0,0.00013698,2]
[401801843,1768379443544,-500.0,0.00013698,2]
[401801845,1768379443554,-500.0,0.00013698,2]
[401801846,1768379443564,-500.0,0.00013698,2]
[401801847,1768379443575,-500.0,0.00013698,2]
[401801848,1768379443584,-500.0,0.00013698,2]
[401801850,1768379443594,-500.0,0.00013698,2]
[401801851,1768379443604,-500.0,0.00013698,2]
[401801852,1768379443615,-260.74557216,0.00013698,2]
[401801854,1768379443624,-500.0,0.00013698,2]
[401801855,1768379443634,-500.0,0.00013698,2]
[401801856,1768379443643,-500.0,0.00013698,2]
[401801857,1768379443652,-500.0,0.00013698,2]
[401801859,1768379443662,-500.0,0.00013698,2]
[401801860,1768379443672,-500.0,0.00013698,2]
[401801861,1768379443681,-500.0,0.00013698,2]
[401801863,1768379443691,-500.0,0.00013698,2]
[401801864,1768379443700,-500.0,0.00013698,2]
[401801865,1768379443709,-500.0,0.00013698,2]
[401801866,1768379443719,-500.0,0.00013698,2]
[401801868,1768379443728,-500.0,0.00013698,2]
[401801869,1768379443738,-500.0,0.00013698,2]
[401801870,1768379443747,-500.0,0.00013698,2]
[401801872,1768379443756,-500.0,0.00013698,2]
[401801873,1768379443765,-500.0,0.00013698,2]
[401801874,1768379443774,-500.0,0.00013698,2]
[401801876,1768379443783,-500.0,0.00013698,2]
[401801877,1768379443792,-500.0,0.00013698,2]
[401801878,1768379443801,-516.10527878,0.00013698,2]
[401801879,1768379443811,-287.27602471,0.00013698,2]
[401801881,1768379443820,-89638.5364648,0.00013699,2]
[401801882,1768379443829,-501.43010395,0.00013699,2]
[401801883,1768379443838,-500.35014826,0.00013699,2]
[401801884,1768379443848,-500.0,0.00013699,2]
[401801885,1768379443857,-500.0,0.00013699,2]
[401801886,1768379443868,-500.0,0.00013699,2]
[401801887,1768379443877,-500.0,0.00013699,2]
[401801888,1768379443887,-193.02895498,0.00013699,2]
[401801889,1768379443896,-500.0,0.00013699,2]
[401801890,1768379443905,-500.0,0.00013699,2]
[401801891,1768379443915,-489.04509742,0.00013699,2]
[401801892,1768379443924,-500.0,0.00013699,2]
[401801893,1768379443934,-500.0,0.00013699,2]
[401801894,1768379443943,-500.0,0.00013699,2]
[401801895,1768379443952,-500.0,0.00013699,2]
[401801896,1768379443962,-500.0,0.00013699,2]
[401801897,1768379443971,-500.0,0.00013699,2]
[401801898,1768379443980,-413.79090585,0.00013699,2]
[401801899,1768379443990,-500.0,0.00013699,2]
[401801900,1768379444000,-500.32486546,0.00013699,2]
[401801901,1768379444010,-500.0,0.00013699,2]
[401801902,1768379444019,-301.86126485,0.00013699,2]
[401801903,1768379444028,-500.0,0.00013699,2]
[401801904,1768379444037,-252.90578758,0.00013699,2]
[401801905,1768379444047,-501.82501982,0.00013699,2]
[401801906,1768379444056,-500.0,0.00013699,2]
[401801907,1768379444065,-500.0,0.00013699,2]
[401801908,1768379444074,-500.0,0.00013699,2]
[401801909,1768379444083,-500.0,0.00013699,2]
[401801910,1768379444092,-500.28466628,0.00013699,2]
[401801911,1768379444101,-500.0,0.00013699,2]
[401801912,1768379444110,-500.0,0.00013699,2]
[401801913,1768379444119,-500.0,0.00013699,2]
[401801914,1768379444129,-500.0,0.00013699,2]
[401801915,1768379444138,-500.0,0.00013699,2]
[401801916,1768379444147,-500.0,0.00013699,2]
[401801917,1768379444156,-500.63930151,0.00013699,2]
[401801918,1768379444166,-500.0,0.00013699,2]
[401801919,1768379444175,-500.0,0.00013699,2]
[401801920,1768379444184,-500.0,0.00013699,2]
[401801921,1768379444193,-500.0,0.00013699,2]
[401801922,1768379444202,-500.0,0.00013699,2]
[401801923,1768379444211,-500.0,0.00013699,2]
[401801924,1768379444220,-500.0,0.00013699,2]
[401801925,1768379444229,-500.0,0.00013699,2]
[401801926,1768379444238,-500.70727162,0.00013699,2]
[401801927,1768379444247,-500.0,0.00013699,2]
[401801928,1768379444256,-500.0,0.00013699,2]
[401801929,1768379444266,-500.0,0.00013699,2]
[401801930,1768379444275,-500.0,0.00013699,2]
[401801931,1768379444284,-500.0,0.00013699,2]
[401801932,1768379444294,-500.0,0.00013699,2]
[401801933,1768379444303,-500.0,0.00013699,2]
[401801935,1768379444312,-519.22942888,0.00013699,2]
[401801936,1768379444321,-500.0,0.00013699,2]
[401801937,1768379444335,-500.0,0.00013699,2]
[401801938,1768379444344,-500.0,0.00013699,2]
[401801939,1768379444353,-500.0,0.00013699,2]
[401801940,1768379444363,-2000.0,0.00013699,7]
[401801941,1768379444373,-500.0,0.00013699,2]
[401801943,1768379444382,-504.50322617,0.00013699,2]
[401801944,1768379444391,-500.30572678,0.00013699,2]
[401801945,1768379444402,-500.0,0.00013699,2]
[401801947,1768379444411,-443.99780341,0.00013699,2]
[401801948,1768379444421,-500.0,0.00013699,2]
[401801949,1768379444432,-908.0,0.00013699,2]
[401801950,1768379444442,-431.0,0.00013699,2]
[401801952,1768379444451,-370.88979349,0.00013699,2]
[401801953,1768379444461,-1299.1,0.000137,2]
[401801954,1768379444471,-2347.87260389,0.00013716,2]
[401801955,1768379444480,-10000.0,0.00013735,2]
[401801956,1768379444490,-10000.0,0.00013735,2]
[401801957,1768379444500,-4343.48,0.00013735,2]
[401801958,1768379444509,-10000.0,0.00013763,2]
[401801960,1768379444518,-1306.48,0.00013763,2]
[401801961,1768379444527,-2434.74389024,0.00013771,2]
[401801962,1768379444536,-1002.68632401,0.00013821,2]
[401801963,1768379444545,-1002.88869488,0.00013821,2]
[401801964,1768379444555,-1000.0,0.00013821,2]
[401801965,1768379444564,-440.24648614,0.00013821,2]
[401801966,1768379444573,-1000.0,0.00013821,2]
[401801967,1768379444583,-1000.0,0.00013821,2]
[401801968,1768379444592,-1015.29551893,0.00013821,2]
[401801970,1768379444694,-1000.0,0.00013821,2]
[401801971,1768379444704,-1000.0,0.00013821,2]
[401801972,1768379444714,-386.78841051,0.00013821,2]
[401801973,1768379444724,-1000.0,0.00013821,2]
[401801974,1768379444733,-771.86141758,0.00013821,2]
[401801975,1768379444742,-1000.0,0.00013821,2]
[401801976,1768379444752,-1000.0,0.00013821,2]
[401801977,1768379444761,-1000.0,0.00013821,2]
[401801978,1768379444770,-503.63165228,0.00013821,2]
[401801979,1768379444780,-500.0,0.00013821,2]
[401801980,1768379444789,-503.76788333,0.00013821,2]
[401801981,1768379444798,-284.00644743,0.00013821,2]
[401801982,1768379444807,-1000.0,0.00013821,2]
[401801983,1768379444816,-1000.0,0.00013821,2]
[401801984,1768379444825,-169.06993919,0.00013821,2]
[401801986,1768379444835,-1000.0,0.00013821,2]
[401801987,1768379444844,-1000.0,0.00013821,2]
[401801989,1768379444854,-1000.0,0.00013821,2]
[401801991,1768379444864,-1000.0,0.00013821,2]
[401801992,1768379444873,-1000.0,0.00013821,2]
[401801993,1768379444883,-446.5684735,0.00013821,2]
[401801995,1768379444893,-604.03491902,0.00013821,2]
[401801996,1768379444903,-1000.0,0.00013821,2]
[401801997,1768379444913,-1000.0,0.00013821,2]
[401801998,1768379444922,-424.36340331,0.00013821,2]
[401802000,1768379444932,-1000.0,0.00013821,2]
[401802001,1768379444941,-1000.0,0.00013821,2]
[401802002,1768379444951,-1000.0,0.00013821,2]
[401802003,1768379444961,-1002.99360219,0.00013821,2]
[401802004,1768379444970,-1000.0,0.00013821,2]
[401802006,1768379444979,-1000.0,0.00013821,2]
[401802007,1768379444989,-1000.0,0.00013821,2]
[401802008,1768379444998,-1000.0,0.00013821,2]
[401802010,1768379445010,-344.64451203,0.00013821,2]
[401802012,1768379445020,-1003.01901965,0.00013821,2]
[401802013,1768379445031,-1000.0,0.00013821,2]
[401802014,1768379445040,-1000.0,0.00013821,2]
[401802015,1768379445050,-2324.56018556,0.00013826,2]
[401802016,1768379445060,-908.0,0.00013836,2]
[401802017,1768379445070,-431.0,0.00013836,2]
[401802018,1768379445083,-500.0,0.00013888,2]
[401802019,1768379445092,-728.0,0.00013937,2]
[401802020,1768379445102,-929.44370598,0.00013963,2]
[401802021,1768379445111,-150.15988072,0.00013973,2]
[401802023,1768379445120,-908.0,0.00013973,2]
[401802025,1768379445130,-431.0,0.00013973,2]
[401802027,1768379445140,-2312.83697232,0.00013989,2]
[401802028,1768379445149,-478.75725327,0.00013989,2]
[401802029,1768379445159,-31110.0,0.00013989,2]
[401802030,1768379445168,-908.0,0.0001411,2]
[401802031,1768379445177,-431.0,0.0001411,2]
[401802032,1768379445186,-500.0,0.00014162,2]
[401802033,1768379445195,-1299.1,0.000142,2]
[401802034,1768379445204,-24808.228912,0.00014221,7]
[401802035,1768379445213,-600.0,0.00014221,2]
[401802036,1768379445222,-1000.0,0.00014247,2]
[401802037,1768379445231,-1000.0,0.00014247,2]
[401802038,1768379445240,-503.87539742,0.00014247,2]
[401802039,1768379445249,-1000.0,0.00014247,2]
[401802040,1768379445258,-1000.0,0.00014247,2]
[401802041,1768379445268,-1000.0,0.00014247,2]
[401802042,1768379445277,-500.30863166,0.00014247,2]
[401802043,1768379445287,-1000.0,0.00014247,2]
[401802044,1768379445296,-419.62973898,0.00014247,2]
[401802045,1768379445306,-1000.0,0.00014247,2]
[401802046,1768379445315,-1000.0,0.00014247,2]
[401802047,1768379445325,-503.83285644,0.00014247,2]
[401802048,1768379445336,-250.0,0.00014247,2]
[401802050,1768379445345,-500.65482097,0.00014247,2]
[401802051,1768379445354,-501.04290038,0.00014247,2]
[401802052,1768379445364,-1000.0,0.00014247,2]
[401802053,1768379445374,-1000.0,0.00014247,2]
[401802054,1768379445383,-841.41978725,0.00014247,2]
[401802055,1768379445393,-1000.0,0.00014247,2]
[401802057,1768379445405,-1086.73306672,0.00014247,2]
[401802058,1768379445414,-1000.0,0.00014247,2]
[401802059,1768379445424,-1000.0,0.00014247,2]
[401802060,1768379445433,-1000.0,0.00014247,2]
[401802061,1768379445443,-1000.0,0.00014247,2]
[401802063,1768379445452,-1000.0,0.00014247,2]
[401802064,1768379445461,-500.64657654,0.00014247,2]
[401802065,1768379445471,-185.95842189,0.00014247,2]
[401802066,1768379445481,-1000.0,0.00014247,2]
[401802068,1768379445490,-1000.0,0.00014247,2]
[401802069,1768379445499,-1000.0,0.00014247,2]
[401802070,1768379445508,-1000.0,0.00014247,2]
[401802071,1768379445518,-1000.0,0.00014247,2]
[401802072,1768379445527,-1000.0,0.00014247,2]
[401802074,1768379445537,-1000.0,0.00014247,2]
[401802075,1768379445546,-1000.0,0.00014247,2]
[401802076,1768379445555,-1000.0,0.00014247,2]
[401802077,1768379445565,-1001.20972535,0.00014247,2]
[401802078,1768379445575,-1000.0,0.00014247,2]
[401802079,1768379445585,-587.16663197,0.00014247,2]
[401802080,1768379445594,-1000.0,0.00014247,2]
[401802081,1768379445603,-504.58578591,0.00014247,2]
[401802082,1768379445613,-1000.0,0.00014247,2]
[401802083,1768379445623,-1021.70348589,0.00014247,2]
[401802084,1768379445633,-1000.0,0.00014247,2]
[401802085,1768379445643,-1000.0,0.00014247,2]
[401802087,1768379445652,-1000.0,0.00014247,2]
[401802088,1768379445662,-343.96245491,0.00014247,2]
[401802089,1768379445673,-490.1818171,0.00014247,2]
[401802090,1768379445683,-908.0,0.00014247,2]
[401802091,1768379445692,-431.0,0.00014247,2]
[401802092,1768379445701,-728.0,0.00014325,2]
[401802093,1768379445710,-16538.819274,0.00014325,7]
[401802094,1768379445720,-822.79494335,0.00014368,2]
[401802095,1768379445729,-1500.0,0.00014368,2]
[401802096,1768379445739,-1500.0,0.00014368,2]
[401802097,1768379445747,-1500.0,0.00014368,2]
[401802098,1768379445757,-1123.81068567,0.00014368,2]
[401802099,1768379445766,-1355.28517105,0.00014368,2]
[401802100,1768379445776,-1500.0,0.00014368,2]
[401802101,1768379445785,-150.34504526,0.00014368,2]
[401802103,1768379445794,-1500.0,0.00014368,2]
[401802104,1768379445803,-453.04414217,0.00014368,2]
[401802105,1768379445813,-1500.0,0.00014368,2]
[401802106,1768379445822,-1500.0,0.00014368,2]
[401802107,1768379445832,-556.99110983,0.00014368,2]
[401802109,1768379445841,-1500.0,0.00014368,2]
[401802110,1768379445850,-1500.0,0.00014368,2]
[401802111,1768379445861,-1500.0,0.00014368,2]
[401802112,1768379445870,-1500.0,0.00014368,2]
[401802114,1768379445880,-1500.0,0.00014368,2]
[401802115,1768379445889,-1500.0,0.00014368,2]
[401802116,1768379445899,-1500.0,0.00014368,2]
[401802118,1768379445909,-1500.0,0.00014368,2]
[401802119,1768379445919,-408.27996144,0.00014368,2]
[401802120,1768379445928,-153.79187063,0.00014368,2]
[401802121,1768379445938,-1500.0,0.00014368,2]
[401802122,1768379445947,-503.99870158,0.00014368,2]
[401802123,1768379445956,-158.07183809,0.00014368,2]
[401802124,1768379445966,-738.47106789,0.00014368,2]
[401802125,1768379445976,-908.0,0.00014384,2]
[401802126,1768379445985,-431.0,0.00014384,2]
[401802128,1768379445995,-500.0,0.00014436,2]
[401802130,1768379446004,-1152.0,0.00014441,2]
[401802131,1768379446013,-1152.0,0.00014441,2]
[401802132,1768379446023,-311.0,0.00014441,2]
[401802133,1768379446032,-5000.0,0.0001451,2]
[401802134,1768379446041,-62020.57228,0.00014521,7]
[401802135,1768379446050,-908.0,0.00014521,2]
[401802136,1768379446059,-431.0,0.00014521,2]
[401802137,1768379446069,-2398.4119403,0.00014537,2]
[401802138,1768379446078,-496.47127164,0.00014537,2]
[401802139,1768379446087,-32261.07,0.00014537,2]
[401802140,1768379446096,-908.0,0.00014658,2]
[401802142,1768379446105,-431.0,0.00014658,2]
[401802143,1768379446114,-1299.1,0.000147,2]
[401802144,1768379446123,-500.0,0.0001471,2]
[401802145,1768379446132,-100000.0,0.00014736,2]
[401802146,1768379446141,-41347.048186,0.00014736,7]
[401802147,1768379446150,-900.0,0.00014768,2]
[401802148,1768379446159,-165.99620392,0.00014795,2]
[401802149,1768379446168,-1646.70021057,0.00014795,2]
[401802151,1768379446176,-1500.0,0.00014795,2]
[401802152,1768379446185,-1500.0,0.00014795,2]
[401802153,1768379446194,-1000.0,0.00014795,2]
[401802154,1768379446204,-719.03928287,0.00014795,2]
[401802156,1768379446213,-622.97821503,0.00014795,2]
[401802157,1768379446222,-305.98884969,0.00014795,2]
[401802158,1768379446231,-200.84224431,0.00014795,2]
[401802159,1768379446240,-1503.42728186,0.00014795,2]
[401802160,1768379446249,-1500.0,0.00014795,2]
[401802162,1768379446258,-659.70838602,0.00014795,2]
[401802163,1768379446267,-582.85856265,0.00014795,2]
[401802164,1768379446276,-979.00156205,0.00014795,2]
[401802165,1768379446286,-518.01129916,0.00014795,2]
[401802166,1768379446295,-1500.0,0.00014795,2]
[401802167,1768379446304,-1500.0,0.00014795,2]
[401802168,1768379446314,-559.25711422,0.00014795,2]
[401802169,1768379446323,-1500.0,0.00014795,2]
[401802170,1768379446336,-1500.0,0.00014795,2]
[401802171,1768379446345,-1500.0,0.00014795,2]
[401802172,1768379446355,-1500.0,0.00014795,2]
[401802173,1768379446365,-427.69304459,0.00014795,2]
[401802174,1768379446375,-1500.0,0.00014795,2]
[401802176,1768379446385,-1051.15225971,0.00014795,2]
[401802178,1768379446395,-447.8417188,0.00014795,2]
[401802180,1768379446406,-1500.0,0.00014795,2]
[401802181,1768379446415,-452.68473609,0.00014795,2]
[401802183,1768379446426,-1500.0,0.00014795,2]
[401802185,1768379446435,-791.25337467,0.00014795,2]
[401802186,1768379446444,-1500.0,0.00014795,2]
[401802187,1768379446454,-1500.0,0.00014795,2]
[401802188,1768379446464,-908.0,0.00014795,2]
[401802190,1768379446474,-431.0,0.00014795,2]
[401802192,1768379446483,-728.0,0.00014804,2]
[401802194,1768379446493,-1000.0,0.0001488,2]
[401802196,1768379446503,-244.0,0.0001488,2]
[401802198,1768379446512,-403.91919138,0.000149,2]
[401802200,1768379446522,-403.91919137,0.000149,2]
[401802202,1768379446532,-403.91919137,0.000149,2]
[401802204,1768379446541,-595.01188659,0.000149,2]
[401802206,1768379446551,-1005.48440654,0.00014916,2]
[401802208,1768379446560,-2000.0,0.00014916,2]
[401802210,1768379446570,-878.64680697,0.00014916,2]
[401802212,1768379446580,-185.93278081,0.00014916,2]
[401802214,1768379446590,-2000.0,0.00014916,2]
[401802216,1768379446600,-2000.0,0.00014916,2]
[401802218,1768379446609,-2000.0,0.00014916,2]
[401802220,1768379446618,-2000.0,0.00014916,2]
[401802222,1768379446628,-2000.0,0.00014916,2]
[401802224,1768379446637,-2000.0,0.00014916,2]
[401802226,1768379446647,-2000.0,0.00014916,2]
[401802228,1768379446656,-2000.0,0.00014916,2]
[401802230,1768379446666,-2000.0,0.00014916,2]
[401802232,1768379446676,-1577.72950273,0.00014916,2]
[401802234,1768379446686,-1288.90612665,0.00014916,2]
[401802246,1768379446695,-2000.0,0.00014916,2]
[401802249,1768379446799,-908.0,0.00014932,2]
[401802252,1768379446809,-431.0,0.00014932,2]
[401802254,1768379446818,-830.40027717,0.00014932,2]
[401802256,1768379446828,-500.0,0.00014984,2]
[401802258,1768379446837,-1019.00256747,0.00015,2]
[401802260,1768379446847,-35775.62597585,0.00015,2]
[401802262,1768379446856,-1372.43724231,0.00015,3]
[401802264,1768379446867,-151.00724332,0.00015,2]
[401802266,1768379446876,-1348.72366395,0.00015,7]
[401802268,1768379446886,-2000.0,0.00015014,7]
[401802270,1768379446896,-800.0,0.00015068,2]
[401802272,1768379446905,-908.0,0.00015069,2]
[401802274,1768379446915,-431.0,0.00015069,2]
[401802276,1768379446925,-2487.15318209,0.00015085,2]
[401802278,1768379446937,-514.84070869,0.00015085,2]
[401802280,1768379446947,-11901.28360109,0.00015085,2]
[401802282,1768379446956,-728.0,0.00015124,2]
[401802284,1768379446966,-630.30939895,0.00015204,2]
[401802286,1768379446978,-918.0018012,0.00015206,2]
[401802288,1768379446997,-454.17015784,0.00015206,2]
[401802290,1768379447007,-728.0,0.00015227,2]
[401802292,1768379447017,-500.0,0.00015258,2]
[401802294,1768379447027,-2147.0,0.00015292,2]